bitfinex/quotes_SOLUSD_20240613
["timestamp","ask_amount","ask_price","bid_price","bid_amount"]
[1718319944869,23.8617,147.44,147.39,7.74]
[1718319946873,16.1217,147.44,147.39,7.74]
[1718319947202,16.1217,147.44,147.4,7.74]
[1718319947375,16.1217,147.44,147.41,7.74]
[1718319948475,16.1217,147.44,147.4,10.2501]
[1718319949202,6.6063,147.46,147.42,7.74]
[1718319949497,6.6063,147.46,147.42,10.2498]
[1718319949696,6.6063,147.46,147.43,7.74]
[1718319949873,6.6063,147.46,147.43,10.2496]
[1718319950065,6.6063,147.46,147.43,7.74]
[1718319951482,6.6063,147.46,147.35,66.6353]
[1718319951483,15.605,147.48,147.44,7.74]
[1718319952401,15.605,147.48,147.45,7.74]
[1718319955089,15.605,147.48,147.43,2.5095]
[1718319955273,15.605,147.48,147.44,7.74]
[1718319956086,23.345,147.48,147.39,6.3148]
[1718319956275,23.345,147.48,147.42,7.74]
[1718319957692,23.345,147.48,147.35,15.3353]
[1718319957693,7.74,147.44,147.35,15.3353]
[1718319957897,145.17,147.47,147.38,10.2505]
[1718319958204,145.17,147.47,147.4,7.74]
[1718319958205,7.74,147.45,147.4,7.74]
[1718319958377,7.74,147.46,147.4,10.25]
[1718319958882,7.74,147.46,147.41,7.74]
[1718319959088,0.17,147.47,147.41,7.74]
[1718319959284,15.775,147.48,147.42,7.74]
[1718319959479,23.345,147.48,147.41,2.5099]
[1718319959697,23.345,147.48,147.43,7.74]
[1718319960487,15.605,147.48,147.43,7.74]
[1718319960687,6.243,147.5,147.46,7.74]
[1718319961209,6.243,147.5,147.45,7.74]
[1718319961397,13.983,147.5,147.45,7.74]
[1718319962928,13.983,147.5,147.44,2.5094]
[1718319962929,6.243,147.5,147.44,2.5094]
[1718319964303,6.243,147.5,147.45,2.5093]
[1718319964807,6.243,147.5,147.46,2.5091]
[1718319964988,6.243,147.5,147.45,2.5092]
[1718319965187,16.2157,147.52,147.46,2.5091]
[1718319967324,16.2157,147.52,147.45,2.5092]
[1718319968609,16.2157,147.52,147.44,20.0]
[1718319968907,16.2157,147.52,147.44,2.5094]
[1718319969409,16.2157,147.52,147.45,2.5093]
[1718319972329,16.2157,147.52,147.46,2.5091]
[1718319973819,16.2157,147.52,147.47,2.5089]
[1718319974132,16.2157,147.52,147.46,2.5091]
[1718319975427,6.5351,147.54,147.47,2.5088]
[1718319976009,6.5351,147.54,147.46,20.0]
[1718319976334,6.5351,147.54,147.47,2.5088]
[1718319977638,6.5351,147.54,147.48,2.5087]
[1718319981013,6.5351,147.54,147.47,2.5088]
[1718319981630,6.5351,147.54,147.46,20.0]
[1718319981817,6.5351,147.54,147.45,20.0]
[1718319982202,6.5351,147.54,147.48,2.5088]
[1718319983338,6.5351,147.54,147.49,2.5086]
[1718319983538,16.649,147.55,147.51,2.5082]
[1718319983762,16.649,147.55,147.52,2.5081]
[1718319984037,6.1214,147.58,147.52,2.5081]
[1718319984843,6.1214,147.58,147.54,7.72]
[1718319985834,13.8414,147.58,147.53,7.72]
[1718319986908,13.8414,147.58,147.52,2.5081]
[1718319987134,13.8414,147.58,147.51,2.5082]
[1718319987310,13.8414,147.58,147.5,22.5083]
[1718319987510,13.8414,147.58,147.51,2.5082]
[1718319987710,13.8414,147.58,147.53,7.72]
[1718319988614,13.8414,147.58,147.53,10.2279]
[1718319988814,13.8414,147.58,147.53,7.72]
[1718319990425,6.1214,147.58,147.54,7.72]
[1718319991152,16.5918,147.59,147.56,10.2273]
[1718319991316,16.5918,147.59,147.56,7.72]
[1718319991838,16.5918,147.59,147.54,2.5077]
[1718319992018,16.5918,147.59,147.55,7.72]
[1718319992419,16.5918,147.59,147.54,7.72]
[1718319992614,24.3118,147.59,147.53,7.72]
[1718319992826,7.72,147.58,147.53,7.72]
[1718319994242,7.72,147.58,147.52,2.508]
[1718319994537,7.72,147.58,147.53,7.72]
[1718319994741,7.72,147.58,147.53,10.2279]
[1718319995118,7.72,147.58,147.54,2.5077]
[1718319995327,24.3118,147.59,147.54,10.2277]
[1718319995745,16.5918,147.59,147.55,7.72]
[1718319995944,16.5918,147.59,147.56,2.5073]
[1718319996469,16.5918,147.59,147.55,10.2275]
[1718319997521,16.5918,147.59,147.55,7.72]
[1718319997722,24.3118,147.59,147.54,7.72]
[1718319998347,0.17,147.58,147.5,20.0]
[1718319998526,0.17,147.58,147.51,20.0]
[1718319998527,7.89,147.58,147.51,20.0]
[1718319998728,7.89,147.58,147.53,7.72]
[1718319999847,7.89,147.58,147.53,10.2279]
[1718320000139,0.17,147.58,147.54,7.72]
[1718320000645,0.34,147.58,147.54,7.72]
[1718320002738,16.5918,147.59,147.54,7.72]
[1718320003036,16.5918,147.59,147.55,7.72]
[1718320003844,16.5918,147.59,147.56,7.72]
[1718320005123,16.5918,147.59,147.56,10.2272]
[1718320005527,16.5918,147.59,147.56,7.72]
[1718320005724,6.2588,147.61,147.57,7.72]
[1718320005923,15.3869,147.62,147.59,7.72]
[1718320007347,15.3869,147.62,147.57,7.72]
[1718320007743,23.1069,147.62,147.57,7.72]
[1718320008840,15.3869,147.62,147.57,7.72]
[1718320009344,23.1069,147.62,147.57,7.72]
[1718320010931,15.3869,147.62,147.58,7.72]
[1718320011348,15.3869,147.62,147.56,2.5073]
[1718320011349,23.1069,147.62,147.57,7.72]
[1718320012238,23.1069,147.62,147.52,2.508]
[1718320012239,0.17,147.59,147.52,2.508]
[1718320012564,7.89,147.59,147.52,2.508]
[1718320012752,7.89,147.59,147.54,7.72]
[1718320013068,0.17,147.59,147.55,7.72]
[1718320013351,0.17,147.59,147.49,30.88]
[1718320013352,7.89,147.59,147.54,7.72]
[1718320014063,0.17,147.59,147.54,7.72]
[1718320014439,0.34,147.59,147.54,7.72]
[1718320015135,8.06,147.59,147.54,10.2277]
[1718320015759,8.06,147.59,147.54,7.72]
[1718320018174,8.06,147.59,147.5,5.0169]
[1718320018369,8.06,147.59,147.49,30.88]
[1718320018370,7.72,147.58,147.51,22.5082]
[1718320018551,7.72,147.58,147.52,10.2281]
[1718320018752,7.72,147.58,147.53,20.0]
[1718320019147,7.72,147.58,147.52,2.5081]
[1718320019348,0.34,147.59,147.53,7.72]
[1718320019570,0.34,147.59,147.5,20.0]
[1718320019571,0.34,147.59,147.54,10.2276]
[1718320020462,0.34,147.59,147.54,2.5076]
[1718320020657,8.06,147.59,147.5,22.5083]
[1718320020965,7.72,147.55,147.49,7.72]
[1718320021148,7.72,147.55,147.44,21.775]
[1718320021347,7.72,147.56,147.44,21.775]
[1718320021554,7.72,147.56,147.51,7.72]
[1718320021944,8.06,147.57,147.51,7.72]
[1718320022147,45.0,147.56,147.51,7.72]
[1718320024446,45.0,147.56,147.5,2.5084]
[1718320024674,45.0,147.56,147.51,7.72]
[1718320026171,15.8974,147.58,147.54,7.72]
[1718320026475,15.8974,147.58,147.55,7.72]
[1718320027270,15.8974,147.58,147.54,7.72]
[1718320027975,15.8974,147.58,147.44,72.06974804]
[1718320027976,51.2498,147.57,147.44,5.33927155]
[1718320028148,0.17,147.54,147.49,7.72]
[1718320028353,52.89,147.54,147.49,7.72]
[1718320028762,16.4317,147.53,147.46,2.5091]
[1718320028956,0.17,147.52,147.48,7.72]
[1718320029168,0.17,147.52,147.49,7.72]
[1718320030667,0.17,147.52,147.46,2.5091]
[1718320030668,7.89,147.52,147.45,2.5092]
[1718320030874,6.4565,147.51,147.47,7.72]
[1718320031069,6.6265,147.51,147.47,7.72]
[1718320034360,6.6265,147.51,147.42,41.9351]
[1718320034681,6.6265,147.51,147.48,7.72]
[1718320036676,6.6265,147.51,147.45,2.5092]
[1718320036880,6.6265,147.51,147.47,7.72]
[1718320037261,6.4565,147.51,147.47,7.72]
[1718320037483,6.4565,147.51,147.48,7.72]
[1718320041293,16.4317,147.53,147.48,7.72]
[1718320041475,16.4317,147.53,147.5,7.72]
[1718320046193,16.4317,147.53,147.48,7.72]
[1718320046412,16.4317,147.53,147.47,2.5088]
[1718320046413,0.17,147.52,147.44,15.552]
[1718320046579,8.23,147.52,147.47,7.72]
[1718320047384,0.51,147.52,147.47,7.72]
[1718320048967,16.4317,147.53,147.45,20.0]
[1718320049275,16.4317,147.53,147.5,7.72]
[1718320050396,0.17,147.55,147.5,7.343328]
[1718320050674,45.51,147.55,147.5,7.343328]
[1718320051891,6.7507444,147.56,147.51,7.72]
[1718320052089,6.7507444,147.56,147.49,2.5086]
[1718320052090,0.0890444,147.56,147.53,7.72]
[1718320052385,0.0890444,147.56,147.54,7.72]
[1718320056020,0.0890444,147.56,147.52,2.508]
[1718320056513,0.0890444,147.56,147.54,7.72]
[1718320060631,0.0890444,147.56,147.51,2.5082]
[1718320060928,0.0890444,147.56,147.53,7.72]
[1718320061407,0.0890444,147.56,147.54,7.72]
[1718320061614,0.0890444,147.56,147.53,7.72]
[1718320062906,0.0890444,147.56,147.5,20.0]
[1718320063116,0.0890444,147.56,147.53,7.72]
[1718320068006,0.0890444,147.56,147.53,10.2279]
[1718320070432,0.0890444,147.56,147.5,20.0]
[1718320070609,0.0890444,147.56,147.55,7.72]
[1718320071431,0.0890444,147.56,147.53,2.5078]
[1718320071611,0.0890444,147.56,147.55,7.72]
[1718320083414,0.0890444,147.56,147.55,10.2276]
[1718320088142,0.0890444,147.56,147.55,83.2876]
[1718320090336,0.0890444,147.56,147.55,22.6776]
[1718320090524,0.0890444,147.56,147.55,30.3976]
[1718320103333,0.0890444,147.56,147.51,2.5081]
[1718320103540,0.0890444,147.56,147.49,46.0684]
[1718320103851,0.0890444,147.56,147.55,7.72]
[1718320104261,0.0890444,147.56,147.55,10.2276]
[1718320104436,0.0890444,147.56,147.55,7.72]
[1718320104844,0.0890444,147.56,147.55,10.2276]
[1718320106550,0.0890444,147.56,147.54,2.5077]
[1718320106757,0.0890444,147.56,147.54,7.72]
[1718320107635,0.0890444,147.56,147.52,2.508]
[1718320107841,0.0890444,147.56,147.54,7.72]
[1718320108153,0.0890444,147.56,147.53,7.72]
[1718320108541,0.0890444,147.56,147.51,2.5082]
[1718320108737,0.0890444,147.56,147.52,7.72]
[1718320109948,0.0890444,147.56,147.52,10.2281]
[1718320110154,0.0890444,147.56,147.53,7.72]
[1718320113362,0.0890444,147.56,147.52,7.72]
[1718320117374,7.72,147.53,147.46,2.509]
[1718320117550,0.17,147.52,147.47,7.72]
[1718320117946,7.72,147.53,147.48,7.72]
[1718320118252,0.17,147.53,147.49,7.72]
[1718320118557,0.34,147.53,147.49,7.72]
[1718320121270,0.34,147.53,147.44,5.0187]
[1718320121465,0.34,147.53,147.49,7.72]
[1718320122083,0.17,147.54,147.49,7.72]
[1718320122268,0.34,147.54,147.5,7.72]
[1718320124167,22.483,147.55,147.5,7.72]
[1718320126596,30.203,147.55,147.5,7.72]
[1718320127648,30.203,147.55,147.48,2.5087]
[1718320127884,30.203,147.55,147.5,7.72]
[1718320132181,30.203,147.55,147.49,7.72]
[1718320132990,7.72,147.54,147.49,7.72]
[1718320133390,7.72,147.54,147.46,2.509]
[1718320133578,7.72,147.53,147.48,7.72]
[1718320136298,7.72,147.54,147.48,7.72]
[1718320137702,7.72,147.54,147.48,10.2288]
[1718320139701,0.17,147.54,147.49,7.72]
[1718320140004,8.06,147.54,147.49,10.2285]
[1718320140405,8.06,147.54,147.48,2.5087]
[1718320140586,8.06,147.54,147.49,7.72]
[1718320140768,7.72,147.53,147.48,10.2287]
[1718320142186,7.72,147.52,147.46,2.509]
[1718320142381,7.72,147.52,147.44,15.2117]
[1718320142382,7.72,147.5,147.44,2.5094]
[1718320142796,23.9918,147.5,147.44,7.72]
[1718320143096,23.9918,147.5,147.45,7.72]
[1718320143279,23.9918,147.5,147.44,2.5094]
[1718320143475,7.72,147.49,147.43,2.5095]
[1718320144099,7.72,147.49,147.43,10.2295]
[1718320144903,7.72,147.49,147.44,10.2294]
[1718320145489,7.72,147.49,147.45,2.5093]
[1718320145801,30.2495,147.5,147.45,7.72]
[1718320146011,30.2495,147.5,147.45,10.2293]
[1718320147698,30.2495,147.5,147.45,7.72]
[1718320148505,52.89,147.49,147.39,6.1517]
[1718320148721,7.89,147.48,147.43,7.72]
[1718320148885,7.72,147.47,147.42,7.72]
[1718320149283,0.17,147.48,147.33,5.50059875]
[1718320149284,7.72,147.43,147.33,5.50059875]
[1718320149486,0.17,147.45,147.32,21.7416]
[1718320149487,7.72,147.42,147.37,7.72]
[1718320149688,7.72,147.42,147.37,10.2305]
[1718320150611,7.72,147.42,147.37,2.5105]
[1718320150921,7.72,147.42,147.37,10.2305]
[1718320151513,0.51,147.45,147.37,10.2305]
[1718320151714,7.72,147.42,147.37,10.2305]
[1718320152015,7.72,147.43,147.37,10.2305]
[1718320152234,0.17,147.44,147.36,2.5107]
[1718320152517,23.7514,147.41,147.32,20.1835]
[1718320152721,0.17,147.4,147.35,7.72]
[1718320152925,8.06,147.4,147.35,7.72]
[1718320153222,8.06,147.4,147.33,22.5112]
[1718320153402,7.72,147.39,147.34,7.72]
[1718320153600,7.72,147.39,147.33,7.72]
[1718320153918,7.72,147.39,147.33,10.2313]
[1718320154225,0.34,147.4,147.33,10.2313]
[1718320154431,7.72,147.39,147.34,7.72]
[1718320154923,30.383,147.41,147.36,7.72]
[1718320156325,0.34,147.4,147.36,7.72]
[1718320156826,4.20163245,147.4,147.34,7.72]
[1718320156998,4.20163245,147.4,147.35,7.72]
[1718320157498,4.20163245,147.4,147.34,7.72]
[1718320158297,4.20163245,147.4,147.35,7.72]
[1718320158709,4.20163245,147.4,147.31,5.0232]
[1718320158912,4.20163245,147.4,147.35,7.72]
[1718320160426,122.833,147.41,147.28,2.5121]
[1718320160427,15.1284,147.35,147.28,2.5121]
[1718320160633,22.8484,147.35,147.3,7.72]
[1718320161134,15.1284,147.35,147.3,7.72]
[1718320161299,21.3412,147.35,147.3,7.72]
[1718320161505,21.3412,147.35,147.31,7.72]
[1718320165717,7.72,147.37,147.3,2.5118]
[1718320166034,15.8242,147.38,147.33,7.72]
[1718320166713,23.5442,147.38,147.3,2.5118]
[1718320167229,19.95860855,147.38,147.3,2.5118]
[1718320167626,19.95860855,147.38,147.29,2.5119]
[1718320168131,45.17,147.37,147.28,33.5621]
[1718320168336,52.89,147.37,147.28,33.5621]
[1718320168525,52.89,147.37,147.29,2.512]
[1718320171037,7.72,147.36,147.29,2.512]
[1718320171237,7.72,147.36,147.31,7.72]
[1718320172647,7.72,147.36,147.29,2.512]
[1718320172931,7.72,147.36,147.31,7.72]
[1718320173935,0.17,147.37,147.31,7.72]
[1718320174240,7.72,147.35,147.28,2.6821]
[1718320174449,7.72,147.36,147.3,7.72]
[1718320176415,7.72,147.36,147.29,2.5119]
[1718320176642,7.72,147.36,147.3,7.72]
[1718320177035,7.72,147.36,147.29,2.5119]
[1718320177234,7.72,147.36,147.3,7.72]
[1718320177536,4.13200893,147.36,147.3,7.72]
[1718320177909,7.72,147.34,147.28,2.5122]
[1718320178115,7.72,147.34,147.28,10.2322]
[1718320178335,7.72,147.34,147.29,7.72]
[1718320178544,0.17,147.37,147.29,7.72]
[1718320178836,7.72,147.35,147.29,10.2319]
[1718320179012,7.72,147.35,147.3,7.72]
[1718320179215,45.17,147.37,147.26,20.0]
[1718320179216,145.17,147.37,147.26,20.0]
[1718320179516,7.72,147.33,147.26,20.0]
[1718320179711,7.72,147.34,147.28,7.72]
[1718320179913,6.2254,147.35,147.28,7.72]
[1718320180128,45.17,147.34,147.28,7.72]
[1718320180333,0.17,147.34,147.28,7.72]
[1718320180537,13.9454,147.35,147.29,7.72]
[1718320180838,6.2254,147.35,147.3,7.72]
[1718320181545,13.9454,147.35,147.3,7.72]
[1718320181743,6.2254,147.35,147.3,7.72]
[1718320182043,13.9454,147.35,147.3,7.72]
[1718320183639,6.2254,147.35,147.3,7.72]
[1718320183818,13.9454,147.35,147.3,7.72]
[1718320184746,6.2254,147.35,147.3,7.72]
[1718320185046,13.9454,147.35,147.3,7.72]
[1718320187636,13.9454,147.35,147.29,2.512]
[1718320188021,13.9454,147.35,147.29,10.232]
[1718320189117,13.9454,147.35,147.29,2.512]
[1718320189337,13.9454,147.35,147.3,7.72]
[1718320189652,6.2254,147.35,147.3,7.72]
[1718320190226,6.2254,147.35,147.31,7.72]
[1718320190637,6.2254,147.35,147.3,10.2318]
[1718320191040,12.23860855,147.38,147.33,7.72]
[1718320191256,12.23860855,147.38,147.34,7.72]
[1718320191727,12.23860855,147.38,147.35,7.72]
[1718320192538,12.14671046,147.38,147.35,7.72]
[1718320198265,367.3331,147.43,147.35,7.72]
[1718320198440,7.72,147.41,147.35,7.72]
[1718320199263,7.72,147.41,147.32,2.5114]
[1718320199552,7.72,147.41,147.35,7.72]
[1718320200063,80.6315,147.42,147.34,7.72]
[1718320200064,7.72,147.4,147.34,7.72]
[1718320200563,7.72,147.4,147.33,2.5113]
[1718320200740,7.72,147.4,147.34,7.72]
[1718320201140,80.6315,147.42,147.34,7.72]
[1718320201141,7.72,147.39,147.34,7.72]
[1718320201348,7.72,147.39,147.31,20.0]
[1718320201660,7.72,147.35,147.3,7.72]
[1718320202439,16.4792,147.37,147.3,7.72]
[1718320202755,16.4792,147.37,147.33,7.72]
[1718320203256,16.1979,147.41,147.35,7.72]
[1718320203636,23.9179,147.41,147.35,7.72]
[1718320204047,7.72,147.4,147.34,7.72]
[1718320204867,7.72,147.4,147.31,2.5116]
[1718320204868,7.72,147.39,147.31,2.5116]
[1718320205189,7.72,147.39,147.33,7.72]
[1718320205564,7.72,147.39,147.32,2.5115]
[1718320205762,7.72,147.39,147.33,7.72]
[1718320206002,145.0,147.38,147.29,2.512]
[1718320206183,24.0248,147.36,147.3,7.72]
[1718320206559,24.0248,147.36,147.29,2.512]
[1718320206762,24.0248,147.36,147.3,7.72]
[1718320206967,24.0248,147.36,147.29,2.512]
[1718320206968,7.72,147.35,147.29,2.512]
[1718320207183,7.72,147.35,147.3,7.72]
[1718320207765,7.72,147.35,147.3,10.2318]
[1718320207962,7.72,147.35,147.25,2.5126]
[1718320207963,7.72,147.32,147.25,2.5126]
[1718320208186,7.72,147.35,147.26,2.5125]
[1718320208187,7.72,147.31,147.26,2.5125]
[1718320208377,116.3048,147.36,147.26,2.5125]
[1718320208575,7.72,147.33,147.28,7.72]
[1718320209695,7.72,147.33,147.27,7.72]
[1718320210000,7.72,147.33,147.22,16.4926]
[1718320210001,7.72,147.3,147.24,10.2328]
[1718320210167,7.72,147.3,147.24,7.72]
[1718320210370,7.72,147.3,147.25,7.72]
[1718320210963,14.3066,147.31,147.25,7.72]
[1718320211278,15.0456,147.25,147.19,0.7543496]
[1718320211482,7.72,147.24,147.19,0.7543496]
[1718320211788,15.0456,147.25,147.19,8.4743496]
[1718320211987,22.7656,147.25,147.19,8.4743496]
[1718320212288,22.7656,147.25,147.19,0.7543496]
[1718320212465,22.7656,147.25,147.19,8.4743496]
[1718320212665,0.17,147.24,147.19,8.4743496]
[1718320215365,0.17,147.24,147.19,0.7543496]
[1718320215577,0.17,147.24,147.19,8.4743496]
[1718320216506,0.17,147.24,147.19,0.7543496]
[1718320216670,0.17,147.24,147.19,8.4743496]
[1718320217100,0.17,147.24,147.19,0.7543496]
[1718320219697,7.72,147.23,147.19,0.7543496]
[1718320219884,52.72,147.22,147.19,0.7543496]
[1718320220076,7.72,147.22,147.19,0.7543496]
[1718320221273,15.9643,147.18,147.07,2.5157]
[1718320221497,7.72,147.14,147.09,2.5153]
[1718320222203,145.17,147.17,147.05,16.4987]
[1718320222508,7.72,147.15,147.1,7.72]
[1718320222796,7.72,147.15,147.1,6.72]
[1718320223004,7.72,147.15,147.09,10.2354]
[1718320223206,7.72,147.15,147.09,7.72]
[1718320223410,0.17,147.16,147.09,7.72]
[1718320223614,7.72,147.15,147.09,7.72]
[1718320224302,7.72,147.14,147.09,7.72]
[1718320224598,100.0,147.17,147.05,16.4987]
[1718320224781,7.72,147.12,147.06,2.5159]
[1718320224975,7.72,147.12,147.06,7.72]
[1718320225685,6.0352,147.13,147.04,0.843394]
[1718320225886,7.72,147.14,147.08,7.72]
[1718320226284,7.72,147.14,147.07,2.5157]
[1718320226483,7.72,147.12,147.04,0.843394]
[1718320226683,7.72,147.12,147.06,7.72]
[1718320226884,100.0,147.14,147.04,0.843394]
[1718320227087,65.34,147.13,147.04,0.843394]
[1718320227297,100.0,147.12,147.04,0.843394]
[1718320227486,45.0,147.11,147.04,0.843394]
[1718320227803,45.17,147.11,147.04,0.843394]
[1718320229097,15.6109,147.1,147.04,0.843394]
[1718320229304,122.1173,147.1,147.04,0.843394]
[1718320229605,200.0,147.06,147.04,0.843394]
[1718320230121,65.34,147.05,147.04,0.843394]
[1718320231297,200.0,147.03,146.92,15.2523]
[1718320231614,94.174,147.05,146.89,0.843394]
[1718320231615,100.0,146.99,146.89,0.843394]
[1718320231982,100.0,146.97,146.89,0.843394]
[1718320232299,45.17,146.98,146.89,0.843394]
[1718320232479,200.0,147.02,146.89,0.843394]
[1718320232680,22.049,147.05,146.89,34.228394]
[1718320232889,22.049,147.05,146.9,15.955]
[1718320233092,22.049,147.05,146.92,23.31]
[1718320233308,100.0,147.08,146.99,2.5171]
[1718320233484,21.3255,147.09,146.99,2.5171]
[1718320234399,100.0,147.07,146.96,6.5507]
[1718320234990,20.0,147.06,146.96,6.5507]
[1718320235384,45.17,147.05,146.97,2.5174]
[1718320235702,45.17,147.05,146.93,23.31]
[1718320235911,100.0,147.03,146.92,6.3503]
[1718320236081,100.0,147.03,146.95,2.5178]
[1718320236281,100.0,147.03,146.92,6.3503]
[1718320236282,100.0,147.03,146.94,2.5179]
[1718320236915,100.0,147.03,146.95,2.5178]
[1718320237413,100.0,147.03,146.94,2.5179]
[1718320237716,100.0,147.03,146.95,2.5178]
[1718320238005,45.17,147.05,146.95,2.5177]
[1718320238194,20.0,147.04,146.96,2.5176]
[1718320238606,20.0,147.04,146.97,2.5174]
[1718320238803,20.0,147.06,146.97,2.5174]
[1718320239601,20.0,147.07,146.98,18.1107]
[1718320239900,20.17,147.08,146.98,18.1107]
[1718320240607,20.17,147.08,146.99,2.5171]
[1718320242008,120.17,147.08,146.98,15.5935]
[1718320242308,100.0,147.06,146.98,15.5935]
[1718320242511,100.0,147.04,146.94,15.3354]
[1718320243816,100.0,147.04,146.95,2.5178]
[1718320244411,45.17,147.05,146.96,2.5176]
[1718320244597,45.0,147.05,146.96,2.5176]
[1718320244790,45.0,147.05,146.95,2.5177]
[1718320244997,45.0,147.05,146.96,2.5176]
[1718320245300,45.0,147.05,146.94,17.8533]
[1718320245695,0.17,147.04,146.95,2.5178]
[1718320247618,0.17,147.04,146.96,2.5176]
[1718320247795,45.0,147.05,146.96,2.5176]
[1718320247999,45.0,147.05,146.97,2.5175]
[1718320248202,45.0,147.05,146.94,15.3354]
[1718320248402,45.0,147.05,146.95,2.5177]
[1718320248603,0.17,147.04,146.95,2.5177]
[1718320248916,0.17,147.04,146.96,2.5176]
[1718320250214,0.17,147.04,146.95,2.5177]
[1718320252123,0.17,147.04,146.96,2.5176]
[1718320252339,45.0,147.05,146.97,2.5174]
[1718320252537,0.17,147.06,146.97,2.5174]
[1718320252702,21.3255,147.09,146.96,5.0353]
[1718320253018,15.1012,147.09,146.99,2.517]
[1718320253220,15.1012,147.09,146.98,2.5172]
[1718320254015,45.0,147.08,146.98,2.5172]
[1718320254236,45.17,147.08,146.97,6.6956]
[1718320254925,45.17,147.08,146.99,2.517]
[1718320255229,45.17,147.08,146.98,15.8785]
[1718320255397,0.17,147.08,146.98,15.8785]
[1718320255599,20.17,147.08,146.98,15.8785]
[1718320256049,20.17,147.08,147.01,2.5168]
[1718320256325,20.17,147.08,146.98,15.8785]
[1718320256704,20.17,147.08,146.99,2.517]
[1718320257343,20.17,147.08,146.98,15.8785]
[1718320257558,145.0,147.07,146.98,15.8785]
[1718320258029,0.17,147.06,146.98,15.8785]
[1718320259029,0.17,147.06,146.98,18.3957]
[1718320260125,145.0,147.07,146.98,18.3957]
[1718320260328,20.0,147.08,146.99,2.517]
[1718320260629,20.0,147.08,146.98,18.3957]
[1718320261220,20.0,147.08,146.99,2.5171]
[1718320262331,20.0,147.08,147.0,2.5169]
[1718320262842,0.17,147.09,147.02,2.5165]
[1718320263145,20.0,147.1,147.02,2.5165]
[1718320263346,20.0,147.1,146.98,15.8785]
[1718320263347,20.0,147.1,147.03,2.5163]
[1718320263545,20.0,147.1,147.02,2.5165]
[1718320263750,20.0,147.11,147.02,2.5165]
[1718320264441,20.0,147.11,147.01,2.5167]
[1718320264644,45.17,147.1,147.01,2.5167]
[1718320264821,45.17,147.1,146.98,15.8785]
[1718320265028,145.17,147.1,147.0,2.5169]
[1718320265248,145.17,147.1,147.01,2.5168]
[1718320265450,45.17,147.1,147.01,2.5168]
[1718320268023,45.17,147.1,146.98,28.4648]
[1718320268229,145.17,147.1,146.99,2.517]
[1718320269256,145.17,147.1,147.0,2.517]